Cogmind - Beta 15 @@@ ROGUE MODE // 2025.05.11 @ 17:46:38 Player: TheTravelingGuy Result: Destroyed by 3B-D4C(R) with Subdweller Laser Performance ------------- Evolutions (0) 0 Regions Visited (2) 400 Robots Destroyed (10) 50 Value Destroyed (308) 308 Prototype IDs (0) 0 Alien Tech Used (0) 0 Bonus (0) 0 TOTAL SCORE: 758 Bonus ------- None Cogmind --------- Core Integrity 0/250 Matter 224/300 Energy 96/100 System Corruption 0% Temperature Cool (6) Movement Walking (260) Ox2 Location -10/Subcaves Parts ------- > --- POWER (1) -------- (None) > --- PROPULSION (2) --- Aluminum Leg > --- UTILITY (2) ------ Large Storage Unit > --- WEAPON (2) ------- Small Laser > --- INVENTORY (15) --- Ion Engine Aluminum Leg Aluminum Leg Aluminum Leg Aluminum Leg Small Matter Pod (50) Large Matter Pod (89) ECM Suite Hacking Suite Light Assault Rifle Light Assault Rifle Grenade Launcher Peak State ------------ > --- POWER ------------ Light Ion Engine > --- PROPULSION ------- Aluminum Leg Aluminum Leg > --- UTILITY ---------- Large Storage Unit Seismic Detector > --- WEAPON ----------- Light Assault Rifle Battle Cannon > --- INVENTORY -------- Ion Engine Aluminum Leg Aluminum Leg Aluminum Leg Aluminum Leg Small Matter Pod Large Matter Pod ECM Suite Hacking Suite Small Laser Light Assault Rifle Light Assault Rifle Grenade Launcher [Rating: 9] Favorites ----------- Power Light Ion Engine Engine Light Ion Engine Propulsion Aluminum Leg Treads Light Treads Leg Aluminum Leg Utility Seismic Detector Device Seismic Detector Storage Large Storage Unit Weapon Light Assault Rifle Energy Gun Small Laser Ballistic Gun Light Assault Rifle Ballistic Cannon Battle Cannon Launcher Grenade Launcher Build | -11 -10 -10 ------- Run | Yrd Mat Sub Slots Evolved . | . . . Power . | . . . Propulsion . | . . . Utility . | . . . Weapon . | . . . Parts Attached 15 | 7 3 5 Power 1 | 1 . . Engine 1 | 1 . . Core . | . . . Reactor . | . . . Propulsion 4 | 2 2 . Treads 2 | 2 . . Leg 2 | . 2 . Wheel . | . . . Hover . | . . . Flight . | . . . Utility 3 | 2 1 . Device 1 | 1 . . Storage 2 | 1 1 . Processor . | . . . Hackware . | . . . Protection . | . . . Artifact . | . . . Weapon 7 | 2 . 5 Energy Gun 1 | . . 1 Energy Cannon . | . . . Ballistic Gun 4 | 2 . 2 Ballistic Cannon 1 | . . 1 Launcher 1 | . . 1 Special Weapon . | . . . Impact Weapon . | . . . Slashing Weapon . | . . . Piercing Weapon . | . . . Special Melee Weapon . | . . . Unidentified Prototypes . | . . . Parts Lost 6 | . . 6 Power 1 | . . 1 Propulsion 1 | . . 1 Utility 1 | . . 1 Weapon 3 | . . 3 Highest Loss Streak 5 | . . 5 To Critical Strikes . | . . . Average Backups 9 | 4 8 12 Power . | . 1 1 Propulsion 3 | 2 4 4 Utility 2 | . 1 4 Weapon 2 | . 2 3 Tool/Special . | . . . Unused Backups 12 | . 3 9 Power 1 | . . 1 Propulsion 6 | . 2 4 Utility 5 | . 1 4 Weapon . | . . . Tool/Special . | . . . Average Slot Usage (%) 99 | . 100 98 Engine 13 | . 14 13 Treads 9 | . 12 . Leg 18 | . 15 28 Device 13 | . 14 13 Storage 14 | . 14 14 Ballistic Gun 27 | . 28 25 Peak Build Rating 9 | 7 8 9 Average Rating 7 | 5 7 8 On Entrance 5 | . 7 8 Naked Turns . | . . . Heaviest Build 28 | 11 26 28 Greatest Support 40 | 40 40 20 Greatest Overweight (x) 1 | . 1 1 Average Overweight (x) . | . . 1 Largest Inventory Capacity 15 | 8 15 15 Average Capacity 12 | 7 11 15 Most Carried 13 | 8 13 13 Average Carried 9 | 4 8 12 Final Capacity 15 | 8 15 15 Final Carried 13 | 7 13 12 Class Distribution -------------------- 100% | Mutant Dominant Class ---------------- Mutant | -10/Materials Mutant | -10/Subcaves Resources | -11 -10 -10 ----------- Run | Yrd Mat Sub Matter Collected 586 | 222 156 208 Remotely . | . . . Salvage Created 320 | 14 209 97 Parts 22 | 4 11 7 Haulers Intercepted . | . . . Recyclers Shooed . | . . . Parts Field Recycled . | . . . Retrieved Matter . | . . . Parts Self-Destructed 9 | . . 9 Prevented . | . . . Kills | -11 -10 -10 ------- Run | Yrd Mat Sub Combat Hostiles Destroyed 7 | . 4 3 Guns 5 | . 4 1 Cannons 1 | . . 1 AOE 1 | . . 1 Classes Destroyed 5 | 1 3 1 Tunneler 1 | 1 . . Operator 1 | . 1 . Watcher 1 | . 1 . Grunt 4 | . 4 . Subdweller 3 | . . 3 Best Kill Streak 2 | 1 2 2 Combat Bots Only 2 | . 2 2 Max Kills in Single Turn 1 | 1 1 1 Gunslinging . | . . . Exploded 1 | . . 1 Melee . | . . . Uniques/NPCs Destroyed . | . . . Combat | -11 -10 -10 -------- Run | Yrd Mat Sub Hostile Shots Fired 58 | . 33 25 Missed 16 | . 9 7 Hits 42 | . 24 18 Projectile 42 | . 24 18 AOE 6 | . . 6 Critical Strikes 1 | . 1 . Damage Taken 945 | . 301 644 Core 268 | . 95 173 Absorbed by Shields . | . . . Core Remaining (%) 100 | 100 . . Volleys Fired 59 | 3 36 20 Largest 2 | 2 2 2 Hottest 60 | 40 40 60 Shots Fired 108 | 6 72 30 Gun 97 | 6 72 19 Cannon 4 | . . 4 Launcher 7 | . . 7 Special . | . . . Kinetic 97 | 6 72 19 Thermal 4 | . . 4 Explosive 7 | . . 7 Electromagnetic . | . . . Robot Hit Streak 12 | 2 5 12 Robot Miss Streak 5 | 2 5 1 Penetration Max . | . . . Secondary Targets . | . . . Shots Hit Robots 62 | 3 39 20 Core Hits 25 | 2 17 6 Critical Kills . | . . . Critical Parts Destroyed . | . . . Critical Strikes . | . . . Melee Attacks . | . . . Impact . | . . . Slashing . | . . . Piercing . | . . . Sneak Attacks . | . . . Combat Hostiles . | . . . Follow-up Attacks . | . . . Damage Inflicted 615 | 23 327 265 Guns 474 | 23 327 124 Cannons 23 | . . 23 Explosions 118 | . . 118 Melee . | . . . Ramming . | . . . Kinetic 464 | 23 327 114 Thermal 33 | . . 33 Explosive 118 | . . 118 Electromagnetic . | . . . Impact . | . . . Slashing . | . . . Piercing . | . . . Highest Corruption . | . . . Average Corruption . | . . . Corruption Purged . | . . . Corruption Blocked . | . . . Overload Shots . | . . . Overflow Damage . | . . . Projectiles . | . . . Explosions . | . . . Melee . | . . . Knockbacks . | . . . Impact . | . . . Kinetic . | . . . Secondary . | . . . Self-Inflicted Damage 18 | . . 18 Shots 1 | . . 1 Rammed . | . . . Targets Rammed . | . . . Kicked . | . . . Crushed . | . . . Highest Temperature 21 | . 21 . Average Temperature 8 | . 8 . Received Heat Transfer 258 | . 186 72 Siege Activations . | . . . Martial Activations . | . . . Shielding Activations . | . . . Robots Disrupted . | . . . Combat Hostiles . | . . . Robots Corrupted . | . . . Combat Hostiles . | . . . Parts Fried . | . . . Impact Corruptions . | . . . Robots Melted . | . . . Combat Hostiles . | . . . Parts Melted 1 | . . 1 Heat Transferred 75 | . . 75 Parts Sabotaged . | . . . Parts Stolen . | . . . Parts Stripped . | . . . Power Chain Reactions . | . . . Alert | -11 -10 -10 ------- Run | Yrd Mat Sub Maximum Alert Level . | . . . Low Security (%) 100 | 100 100 . Level 1 . | . . . Level 2 . | . . . Level 3 . | . . . Level 4 . | . . . Level 5 . | . . . High Security . | . . . Max Security . | . . . Peak Influence 78 | 5 78 . Initial . | . . . Average 9 | . 10 . Influence Increases 173 | 5 168 . Destroy 0b10 Robot/C 80 | . 80 . Destroy 0b10 Robot/NC 15 | 5 10 . Destroy Leader 32 | . 32 . Successful Hack 46 | . 46 . Influence Decreases 173 | 5 168 . Time Decay 173 | 5 168 . Squads Dispatched 3 | . 3 . Investigation 2 | . 2 . Extermination . | . . . Reinforcement 1 | . 1 . Assault . | . . . Garrison . | . . . Intercept . | . . . Searches Triggered . | . . . Construction Impeded . | . . . Haulers Reinforced . | . . . Active Scanning Responses . | . . . Cargo Convoy Interrupts . | . . . Stealth | -11 -10 -10 --------- Run | Yrd Mat Sub Distress Signals 2 | . 2 . Communications Jammed . | . . . Distress Signals . | . . . Times Spotted 20 | . 15 5 Peak Tracking Total 3 | . 3 2 Tactical Retreats . | . . . Traps | -11 -10 -10 ------- Run | Yrd Mat Sub Traps Triggered 1 | . 1 . Indirectly . | . . . Trap Hack Attempts . | . . . Triggered . | . . . Disarmed . | . . . Reprogrammed . | . . . Reused . | . . . Traps Extracted . | . . . Installed . | . . . Triggered . | . . . Machines | -11 -10 -10 ---------- Run | Yrd Mat Sub Machines Disabled . | . . . Max in Single Turn . | . . . Machines Repaired . | . . . Machines Dismantled . | . . . Machines Sabotaged . | . . . Overloaded Fab Kills . | . . . Hacking | -11 -10 -10 --------- Run | Yrd Mat Sub Machines Accessed 4 | . 4 . Terminals 4 | . 4 . Fabricators . | . . . Repair Stations . | . . . Recycling Units . | . . . Scanalyzers . | . . . Garrison Access . | . . . Total Hacks 18 | . 18 . Successful 11 | . 11 . Failed 7 | . 7 . Catastrophic 3 | . 3 . Database Lockouts . | . . . Manual 15 | . 15 . Terminals 18 | . 18 . Fabricators . | . . . Repair Stations . | . . . Recycling Units . | . . . Scanalyzers . | . . . Garrison Access . | . . . Terminal Hacks 7 | . 7 . Record 2 | . 2 . Level Access Points 1 | . 1 . Branch Access Points 1 | . 1 . Emergency Access Points 1 | . 1 . Hauler Manifests 1 | . 1 . Zone Layout 1 | . 1 . Fabricator Hacks . | . . . Repair Station Hacks . | . . . Recycling Unit Hacks . | . . . Scanalyzer . | . . . Garrison Access Hacks . | . . . Unauthorized Hacks 4 | . 4 . Terminals 4 | . 4 . Botnet 4 | . 4 . Fabricators . | . . . Repair Stations . | . . . Recycling Units . | . . . Scanalyzers . | . . . Garrison Access . | . . . Data Cores Recovered . | . . . Used . | . . . Hacking Detections 4 | . 4 . Full Trace Events 3 | . 3 . Feedback Events . | . . . Feedback Blocked . | . . . Robot Schematics Acquired . | . . . Robots Built . | . . . Authchips . | . . . Time . | . . . Total Robot Build Rating . | . . . Part Schematics Acquired . | . . . Parts Built . | . . . Authchips . | . . . Time . | . . . Total Part Build Rating . | . . . Parts Repaired . | . . . Time . | . . . Parts Recycled . | . . . Recycled Matter . | . . . Retrieved Matter . | . . . Retrieved Components . | . . . Parts Scanalyzed . | . . . Part Schematics Acquired . | . . . Parts Damaged . | . . . Bothacking | -11 -10 -10 ------------ Run | Yrd Mat Sub Used RIF Installer . | . . . Robots Hacked . | . . . Non-combat . | . . . Combat . | . . . Robot Hacks Applied . | . . . Relay Couplers Released . | . . . Fabnet Peak Effective % . | . . . Robots Rewired . | . . . Allies Hacked . | . . . Hacks Repelled . | . . . Allies | -11 -10 -10 -------- Run | Yrd Mat Sub Total Allies . | . . . Largest Group . | . . . Highest-Rated Group . | . . . Highest-Rated Ally . | . . . Total Orders . | . . . Ally Attacks . | . . . Total Damage . | . . . Kills . | . . . Allies Corrupted . | . . . Allies Melted . | . . . Intel | -11 -10 -10 ------- Run | Yrd Mat Sub Active Infowar (turns) 1852 | 18 1318 516 Seismic 1852 | 18 1318 516 Robot Analysis Total . | . . . Derelict Logs Recovered . | . . . Drone Launches . | . . . Drone Recoveries . | . . . Exploration | -11 -10 -10 ------------- Run | Yrd Mat Sub Turns Passed 1986 | 119 1318 549 Spaces Moved 810 | 64 525 221 Core 7 | 7 . . Treads 230 | 57 173 . Legs 573 | . 352 221 Wheels . | . . . Hover . | . . . Flight . | . . . Fastest Speed 50 | 50 120 190 Average Speed 179 | 147 178 190 Slowest Speed 190 | 160 190 190 Overloaded Moves . | . . . Propulsion Burnouts . | . . . Robots Hopped . | . . . Potential Cave-ins . | . . . Cave-ins Triggered . | . . . Exploration Rate (%) 23 | 4 49 16 Regions Visited 2 Branch Regions 1 Pre-discovered Areas . | . . . Known Exits Taken . | . . . Unknown Exits Taken 2 | 1 1 . Scrap Searched 3 | . . 3 Spaces Dug 19 | . . 19 Terrain Destroyed 29 | . . 29 Melee . | . . . Projectile . | . . . AOE 29 | . . 29 Terrain Rammed . | . . . Walls Destroyed . | . . . Machines Disabled . | . . . Actions | -11 -10 -10 --------- Run | Yrd Mat Sub Total 1255 | 81 853 321 Wait 344 | . 272 72 Move 808 | 63 524 221 Hop . | . . . Pick Up 21 | 8 12 1 Fast Attach 6 | 6 . . Attach 5 | 1 2 2 Detach . | . . . Swap 6 | . 1 5 Drop 6 | . 6 . Fire 59 | 3 36 20 Melee . | . . . Ram . | . . . Kick . | . . . Crush . | . . . Escape Stasis . | . . . Rewire . | . . . Trap . | . . . Miscellaneous . | . . . Route ------- -11/Scrapyard -10/Materials (discovered 6 exits: *Mat x3 / *Min x2 / [*Sub]) -10/Subcaves History --------- Turn | Location | Event 12 | -11/Scrapyard | Discovered new exit (range 15) 120 | -11/Scrapyard | Entered Materials 313 | -10/Materials | Build established: Mutant 766 | -10/Materials | Discovered new exit (range 16) 777 | -10/Materials | Discovered new exit (range 7) 1281 | -10/Materials | Discovered new exit (range 6) 1281 | -10/Materials | Identified exit to Materials 1281 | -10/Materials | Identified exit to Mines 1438 | -10/Materials | Entered Subcaves 1765 | -10/Subcaves | Core integrity fell below 50% 1975 | -10/Subcaves | Visited 4L-MR0's lab 1977 | -10/Subcaves | Core integrity fell below 20% 1987 | -10/Subcaves | Destroyed by 3B-D4C(R) with Subdweller Laser Last Messages --------------- 01860_ Acquired Battle Cannon. 01887_ Searching scrap... 01887_ Found Sub. Laser. 01887_ Found Sub. Shrapnel Launcher. 01887_ Found 36 Matter. 01888_ Acquired 36 matter. 01921_ Subatomizers dissect the Sub. Laser. 01921_ The unstable cave ceiling collapses. 01933_ Subatomizers dissect the Sub. Laser. 01939_ The unstable cave ceiling collapses. 01954_ Seismic Detector destroyed. 01957_ Subatomizers dissect the Sub. Laser. 01961_ 1O-UKC(R) destroyed. 01972_ Acquired 26 matter. 01974_ Lgt. Ion Engine destroyed. 01974_ Battle Cannon destroyed. 01974_ Machine disabled. 01980_ Aluminum Leg destroyed. 01982_ Lgt. Assault Rifle destroyed. 01987_ 4L-MR0's Prototype Logs disabled. Map ----- +----------------------------------------------------+ | ?????????????????????????????????? | | ?????????????????????????????????? | | ?????????????????????????????????? | | ?????????????????????????????????? | | ?????????????????????????????????? | | ?????????????????????????????????? | | ?????????????????????????????????? | | ?????????????????????????????????? | | ?????????????????????????????????? | | ?????????????????????????????????? | | ?????????????????????????????????? | | ?????????????????????????????????? | | ?????????????????????????????????? | | ???????????????????????????????? ? | | ????????????????????????????? ?? ? | | ??????????????????? ????????? ## | | ?????????????????? ?????? | | ?????????????????? ??? | | ?????????????????# #??? ? | | ???????##??##????# #???# ? | | ???????# ## ###?## ##?## #? | | ??????? ### ### #? | | ???????? # ## | | ???????? ## | | ????????# ## # | | ????????#@ <## # | | ????????# # ## # #?# | | ???????? ##" # #??# | | ???????? ## # # #### | | ??????? # " | | ??????? R # ### | | ?????? # ##?## | | ?????? # "" ###### | | ?????## R# " # #" ## | | ??????""### " "## ### | | ?????? =?###]" ### ##?## | | ??????##?#" [###?# ######## | | ?????????#####??# ##?## | | ????????????????## #?## | | ?????????????????### ### # | | ???????????????????# # | | ??????????????????## | | ??????????????????# | | ??????????????????## | | ????????????????##### = [] | | ???????????????## ### ! | | ??????????????## #?# # | | ??????????????# #### ### " | | ??????????????# ## #?# | | ??????????????# # #?# # | +----------------------------------------------------+ Best States ------------- Heat Dissipation 25 Energy Generation 10 Energy Capacity 125 Matter Stores 300 Matter Capacity 300 Sight Range 16 Terrain Scan Density 10 Evasion (%) 55 Recoil Reduction 2 Item Schematics ----------------- None Robot Schematics ------------------ None Fabricated ------------ Nothing Repaired ---------- Nothing Alien Tech Used ----------------- None Achievements -------------- None Challenges ------------ None Game ------ Seed VoltaicActuatorDoublenader Manual? 0 Play Time 00:13:37 Cumulative 20.0 hours Start 2025.05.11 @ 17:31:32 End 2025.05.11 @ 17:46:38 Sessions 1 Manual Loads 0 Difficulty Rogue Special Mode None Game No. 36 Rogue 36 Adventurer 0 Explorer 0 Win Type - Total 0 Types 0/0/0/0/0/0/0/0/0/0 Lore% 15 Gallery% 21 Achievement% 21 Wizard Run 0 Options --------- Layout 0 ASCII 0 Keyboard 0 Movement Mouse Keybinds 0 Fullscreen 2 Font 18/SmallcapsGlow Map View 76x50 Zoom Use 0% Tactical HUD 1 Map Filters NONE Filters NONE Steam 1 RUN: a5083eca-ea45-40c1-bc47-3164f1c6b5dd